bitfinex/quotes_ETHUSD_20241203
["timestamp","ask_amount","ask_price","bid_price","bid_amount"]
[1733239898445,2.79336,3580.0,3577.9,0.55753202]
[1733239898446,3.88913703,3580.1,3577.9,0.55753202]
[1733239898659,3.88913703,3579.7,3577.5,1.6069]
[1733239898927,0.55,3578.9,3577.1,1.6069]
[1733239899280,0.55,3578.7,3577.4,0.56558864]
[1733239899421,0.03493674,3578.6,3577.4,2.79525]
[1733239899622,0.55,3578.5,3576.7,4.42616]
[1733239899868,0.55,3578.5,3576.3,2.79614]
[1733239899869,3.34469,3578.3,3576.9,2.79571]
[1733239900163,0.55,3578.1,3577.3,2.79535]
[1733239900375,0.55,3578.3,3576.8,0.442616]
[1733239900762,0.55,3578.1,3576.8,0.442616]
[1733239901085,0.55,3578.1,3576.9,2.79571]
[1733239901237,0.55,3578.1,3577.1,1.6392]
[1733239901430,0.55,3578.1,3577.1,4.43472]
[1733239901827,0.55,3578.1,3577.1,1.6392]
[1733239902027,0.55,3578.1,3577.3,0.55697419]
[1733239902228,0.55,3578.1,3577.7,2.79501]
[1733239902461,0.85568762,3579.5,3577.7,2.79501]
[1733239902462,4.08833291,3579.8,3577.8,2.79501]
[1733239902663,4.34420254,3579.5,3577.7,3.074521]
[1733239902867,2.82869384,3579.4,3577.8,2.79498]
[1733239903124,2.82869384,3579.4,3577.3,0.55697419]
[1733239903125,2.79388,3579.3,3577.3,0.55697419]
[1733239903357,4.34420254,3579.5,3577.3,0.55697419]
[1733239903561,0.0349345,3579.4,3577.5,2.79524]
[1733239903743,0.55,3579.3,3577.3,0.55697419]
[1733239903942,0.55,3579.1,3577.9,2.79491]
[1733239904156,0.55,3578.9,3578.1,2.79477]
[1733239904387,0.55,3579.2,3577.5,2.79524]
[1733239904587,2.90301563,3579.8,3578.1,1.5143]
[1733239904936,2.90301563,3579.8,3578.8,0.56368675]
[1733239905254,2.90301563,3579.8,3578.9,2.79415]
[1733239905452,2.90301563,3579.8,3578.9,0.33578368]
[1733239905658,2.90301563,3579.8,3579.1,2.79398]
[1733239905957,2.90301563,3579.8,3579.2,2.79389]
[1733239906291,2.90301563,3579.8,3578.6,2.79438]
[1733239906435,2.90301563,3579.8,3577.9,2.79485]
[1733239906436,3.55,3579.6,3577.9,2.79485]
[1733239906642,0.55,3579.2,3577.8,0.55923481]
[1733239906841,0.55,3579.0,3577.8,0.89467129]
[1733239907144,0.55,3578.8,3577.8,0.55923481]
[1733239907372,0.55,3578.8,3577.8,3.35416481]
[1733239907646,0.55,3578.8,3577.8,0.55923481]
[1733239908152,0.55,3578.8,3578.6,2.79437]
[1733239908352,0.55,3578.8,3578.7,2.79431]
[1733239908962,0.51916064,3579.7,3578.0,1.5368]
[1733239908963,0.72682429,3579.7,3578.0,1.5368]
[1733239909157,0.25958032,3579.7,3578.6,2.79431]
[1733239909456,1.33365204,3580.3,3578.1,2.79477]
[1733239909457,0.25958032,3579.6,3578.1,2.79477]
[1733239909654,0.51940409,3580.1,3579.3,2.79384]
[1733239909892,0.25958032,3580.0,3578.0,1.5368]
[1733239910087,0.25982377,3580.1,3578.0,1.5368]
[1733239910088,0.25958032,3579.9,3579.4,2.79369]
[1733239910379,0.25958032,3579.8,3579.7,2.79353]
[1733239910810,0.41599956,3580.6,3580.2,2.79314]
[1733239910985,1.16120625,3582.2,3580.3,1.5364]
[1733239910986,7.6e-06,3582.1,3580.3,1.5364]
[1733239911145,7.6e-06,3582.0,3581.6,2.79202]
[1733239911345,0.1469,3582.2,3580.7,2.7481]
[1733239911561,0.1469,3582.2,3580.4,0.15364]
[1733239911562,0.1469,3582.2,3581.1,2.79237]
[1733239911764,0.1469,3582.2,3580.5,0.55157176]
[1733239911958,2.79183,3581.9,3580.0,2.79328]
[1733239912157,0.352,3581.7,3580.3,2.79302]
[1733239912402,0.352,3581.5,3580.1,2.7932]
[1733239912707,0.352,3581.3,3581.2,0.56040943]
[1733239913077,0.352,3581.3,3579.3,2.79384]
[1733239913273,0.352,3581.3,3576.1,4.78234268]
[1733239913274,3.902,3580.7,3578.3,2.79462]
[1733239913595,0.55,3580.5,3578.5,2.79446]
[1733239913796,0.55,3580.3,3578.5,2.79446]
[1733239913998,0.55,3580.1,3579.3,2.79377]
[1733239914217,0.352,3579.8,3579.6,0.54676604]
[1733239914419,0.5849237,3579.7,3579.6,0.54676604]
[1733239914712,0.352,3579.8,3578.0,1.5034]
[1733239914920,0.352,3579.8,3577.1,2.79555]
[1733239914921,0.03492106,3581.1,3580.5,2.79286]
[1733239915136,0.352,3581.6,3579.6,5.84760254]
[1733239915479,0.352,3581.6,3581.0,2.79247]
[1733239915686,0.352,3581.6,3579.6,5.84760254]
[1733239915922,0.352,3581.6,3580.6,3.34303743]
[1733239916095,0.03490599,3581.5,3580.6,0.55028743]
[1733239916518,0.352,3581.1,3580.0,2.79329]
[1733239916702,0.352,3581.1,3580.3,2.79303]
[1733239916887,0.352,3581.1,3580.7,2.79268]
[1733239917083,0.352,3581.1,3580.4,0.55313808]
[1733239917393,0.352,3581.1,3580.8,2.79265]
[1733239917602,0.352,3581.1,3580.4,0.53743808]
[1733239917805,0.352,3581.1,3581.0,2.79251]
[1733239917997,0.352,3581.6,3580.5,0.33304881]
[1733239918199,0.352,3581.6,3581.0,2.79248]
[1733239918611,0.352,3581.6,3580.4,0.53743808]
[1733239918827,0.352,3581.6,3580.6,2.79282]
[1733239919087,0.352,3581.6,3581.1,2.79243]
[1733239919397,0.352,3582.2,3581.1,2.79243]
[1733239919592,0.352,3582.2,3582.1,2.79165]
[1733239919798,0.352,3583.4,3581.5,1.5157]
[1733239920050,0.352,3583.2,3581.6,2.94361]
[1733239920251,0.352,3583.2,3581.6,0.15157]
[1733239920555,0.352,3583.2,3581.6,4.49577254]
[1733239920737,0.352,3583.8,3582.1,4.34420254]
[1733239921044,0.352,3584.3,3583.8,2.79025]
[1733239921350,0.352,3584.3,3583.2,1.5194]
[1733239921638,0.41715859,3584.2,3583.5,2.79052]
[1733239921807,0.41715859,3584.1,3583.3,2.79072]
[1733239921995,0.352,3584.3,3582.5,2.79131]
[1733239921996,0.41715859,3584.0,3582.5,2.79131]
[1733239922197,0.45203824,3583.9,3583.1,2.79085]
[1733239922455,0.45204348,3583.8,3583.1,2.79085]
[1733239922599,0.352,3583.6,3582.7,0.56874024]
[1733239922824,0.352,3583.6,3581.7,1.639]
[1733239922825,0.97221005,3583.5,3581.7,1.639]
[1733239923165,3.67724274,3583.4,3582.3,0.55498716]
[1733239923329,0.71213379,3583.3,3582.3,0.55498716]
[1733239923532,0.55,3583.1,3582.6,2.79124]
[1733239923733,0.55,3582.9,3582.8,2.79109]
[1733239923934,0.67724274,3583.0,3582.9,2.79103]
[1733239924132,0.67724274,3583.0,3582.3,0.55498716]
[1733239924493,0.41583706,3583.3,3581.7,1.639]
[1733239924766,0.25989816,3582.9,3582.2,3.34101238]
[1733239924974,0.25989816,3582.8,3582.2,0.54945238]
[1733239925260,0.51979632,3582.7,3582.2,0.54945238]
[1733239925464,0.80989816,3582.6,3582.2,0.54945238]
[1733239925758,0.55,3582.7,3582.2,0.54945238]
[1733239925921,0.55,3582.5,3582.2,0.54945238]
[1733239926123,0.80989816,3582.5,3582.4,2.79142]
[1733239926315,0.55,3582.5,3582.4,2.79142]
[1733239926515,0.80989816,3582.7,3582.5,2.79131]
[1733239926761,0.80989816,3582.6,3582.2,0.54945238]
[1733239926961,0.55,3582.6,3582.2,0.54945238]
[1733239927257,0.80989816,3582.6,3582.2,0.54945238]
[1733239927456,0.55,3582.9,3582.4,2.79141]
[1733239927629,0.55,3582.7,3581.2,1.5158]
[1733239927833,0.55,3582.5,3581.5,2.7921]
[1733239928151,0.55,3582.3,3581.7,3.34203191]
[1733239928323,0.55,3582.3,3581.7,0.55014191]
[1733239928526,3.34845611,3583.8,3581.7,0.55014191]
[1733239928527,0.51957726,3582.8,3582.4,2.79142]
[1733239928724,0.80989816,3582.7,3582.5,2.79129]
[1733239929040,0.55,3582.8,3581.8,2.79189]
[1733239929240,0.55,3582.6,3581.9,0.33420319]
[1733239929418,0.55,3582.6,3581.7,0.55014191]
[1733239929732,0.55,3582.9,3581.7,0.55014191]
[1733239929933,0.55,3582.7,3582.1,2.79158]
[1733239930147,0.80950552,3582.9,3581.7,3.34210191]
[1733239930333,0.55,3582.4,3581.8,2.79188]
[1733239930846,0.55,3582.4,3581.8,2.79187]
[1733239931053,0.55,3582.4,3581.7,0.55014191]
[1733239931054,0.80950552,3582.4,3581.7,0.55014191]
[1733239931226,0.55,3582.2,3580.6,2.79279]
[1733239931418,0.55,3581.8,3580.2,1.5887]
[1733239931622,0.55,3581.6,3580.5,0.57070378]
[1733239931883,0.55,3581.4,3580.5,0.57070378]
[1733239932021,2.79206,3581.6,3580.5,0.57070378]
[1733239932221,0.352,3581.3,3579.8,1.5887]
[1733239932532,0.55,3581.1,3580.2,0.56813355]
[1733239932738,0.55,3581.2,3580.2,0.56813355]
[1733239932947,0.55,3580.9,3580.2,0.56813355]
[1733239933137,0.55,3580.7,3579.6,2.79355]
[1733239933340,0.55,3580.5,3579.6,2.79355]
[1733239933587,0.25950552,3580.7,3578.9,1.5887]
[1733239933588,0.55,3580.3,3579.4,0.55718211]
[1733239933759,0.55,3580.1,3579.2,2.79389]
[1733239934076,0.55,3579.9,3578.7,3.4713102]
[1733239934300,0.55,3579.7,3578.7,6.2656102]
[1733239934513,0.55,3579.5,3578.8,2.79422]
[1733239934919,0.55,3579.5,3578.7,3.4713102]
[1733239935231,0.55,3579.5,3579.0,2.794]
[1733239935420,0.55,3579.5,3578.7,3.4713102]
[1733239935562,0.55,3579.5,3578.7,6.66788656]
[1733239935761,0.55,3579.3,3578.7,6.66788656]
[1733239935993,0.55,3579.3,3578.7,3.87365656]
[1733239936363,0.26010779,3579.9,3579.8,2.79345]
[1733239936761,0.26010779,3579.9,3579.5,2.79366]
[1733239936975,0.26008187,3580.2,3579.3,2.79383]
[1733239937180,0.26008187,3580.2,3579.7,2.79351]
[1733239937411,0.26008187,3580.2,3579.3,0.279383]
[1733239937713,0.26008187,3580.2,3580.1,2.79321]
[1733239938259,1.87e-06,3580.2,3580.1,2.79321]
[1733239938464,1.87e-06,3580.2,3579.9,2.79335]
[1733239938917,1.87e-06,3580.2,3580.1,2.79321]
[1733239940603,1.87e-06,3580.2,3579.9,2.79335]
[1733239940915,1.87e-06,3580.2,3579.5,2.79362]
[1733239941064,0.55000187,3580.2,3579.6,0.279362]
[1733239941584,0.55000187,3580.2,3579.1,2.79393]
[1733239942050,0.55,3580.0,3579.1,0.5512216]
[1733239942347,0.55,3579.8,3578.7,0.40234636]
[1733239942646,0.55,3579.6,3579.1,2.79399]
[1733239942846,0.55,3579.6,3578.3,1.6009]
[1733239942847,0.55,3579.7,3579.4,2.79375]
[1733239942999,0.55,3579.8,3579.3,2.79381]
[1733239943200,0.55,3579.8,3579.4,2.79375]
[1733239943405,0.55,3579.8,3578.3,1.6009]
[1733239943406,0.55,3579.8,3578.8,2.79416]
[1733239943727,0.55,3579.6,3579.1,2.79392]
[1733239943944,0.55,3579.8,3578.8,0.279416]
[1733239944258,0.55,3579.8,3578.5,0.57096206]
[1733239944259,0.55,3579.8,3578.7,2.79431]
[1733239944450,0.55,3579.8,3579.7,2.79353]
[1733239945035,0.352,3579.7,3577.8,1.6068]
[1733239945216,0.584926,3579.6,3578.4,2.79447]
[1733239945402,0.55,3579.4,3578.0,0.57297505]
[1733239945635,0.902,3579.2,3578.0,0.49747051]
[1733239945828,0.55,3579.0,3578.1,2.79475]
[1733239946076,0.55,3579.0,3577.7,0.54758902]
[1733239946233,0.55,3579.0,3578.5,2.79442]
[1733239946438,0.352,3579.2,3578.1,1.5444]
[1733239946439,0.55,3579.1,3578.1,1.5444]
[1733239946634,0.55,3579.1,3578.2,0.433925]
[1733239946980,0.55,3579.1,3578.4,2.79449]
[1733239947479,0.55,3579.1,3578.2,0.433925]
[1733239947845,0.55,3578.9,3577.7,2.09198902]
[1733239948031,0.55,3578.9,3578.8,2.79423]
[1733239948234,0.55,3579.1,3578.8,2.79423]
[1733239948451,0.352,3579.9,3579.0,2.79407]
[1733239948651,0.352,3579.9,3578.7,2.79431]
[1733239948937,0.352,3579.9,3579.4,2.79369]
[1733239949157,0.352,3579.9,3579.2,2.79391]
[1733239949355,0.352,3579.9,3578.8,0.440291]
[1733239949356,0.03492047,3579.8,3578.8,0.440291]
[1733239949560,0.03492047,3579.8,3578.9,2.79413]
[1733239949757,0.55,3579.8,3578.9,2.79413]
[1733239950278,0.55,3579.8,3578.3,0.56179177]
[1733239950279,0.55,3579.8,3578.6,2.79438]
[1733239950461,0.55,3579.8,3578.8,2.79418]
[1733239950783,0.902,3579.6,3578.1,0.54542708]
[1733239950962,0.55,3579.4,3578.6,2.79438]
[1733239951161,0.55,3579.4,3578.1,0.54542708]
[1733239951345,0.55,3579.2,3578.8,2.79416]
[1733239951548,0.55,3579.4,3578.8,2.79416]
[1733239951883,0.55,3579.4,3578.6,2.79437]
[1733239952177,0.55,3579.4,3578.7,2.79425]
[1733239952381,0.55,3579.5,3578.6,0.558899]
[1733239952532,0.55,3579.5,3578.6,2.79434]
[1733239952733,0.352,3579.2,3578.4,2.79446]
[1733239953037,0.352,3578.9,3577.9,0.5645531]
[1733239953235,0.58493128,3578.8,3577.3,1.5876]
[1733239953473,0.55,3578.5,3577.6,2.79509]
[1733239953657,0.55,3578.1,3577.6,2.79509]
[1733239953851,0.55,3578.1,3577.1,0.55650004]
[1733239953852,0.55,3578.1,3577.7,2.79506]
[1733239954141,0.55,3578.1,3577.6,2.79515]
[1733239954370,0.55,3578.1,3577.2,2.79548]
[1733239954371,0.55,3578.1,3577.3,2.79534]
[1733239954535,0.03494041,3578.0,3577.1,0.55650004]
[1733239954740,0.55,3577.7,3577.0,2.79559]
[1733239954938,0.55,3577.5,3577.0,0.279559]
[1733239955171,0.55,3577.5,3577.0,3.075139]
[1733239955367,0.55,3577.7,3577.1,2.79556]
[1733239955545,0.55,3577.7,3577.5,2.79519]
[1733239956052,0.55,3577.7,3577.5,2.79517]
[1733239956247,0.55,3577.7,3577.3,2.79538]
[1733239956885,0.55,3577.7,3577.0,0.279559]
[1733239957085,0.55,3577.7,3577.1,2.79556]
[1733239957269,0.55,3577.7,3577.6,2.79516]
[1733239957667,0.352,3578.2,3577.9,2.79488]
[1733239957873,0.352,3578.2,3577.3,2.79532]
[1733239958069,0.352,3578.2,3577.8,2.79501]
[1733239958269,0.352,3578.2,3577.1,1.6078]
[1733239958470,0.352,3578.2,3577.2,0.1887359]
[1733239958701,0.352,3578.2,3578.1,2.79477]
[1733239959108,0.26053792,3579.2,3578.1,1.6248]
[1733239959410,0.352,3579.7,3578.9,2.79413]
[1733239959761,0.352,3579.7,3578.7,2.7943]
[1733239960104,0.352,3579.5,3578.2,2.79463]
[1733239960277,0.352,3579.5,3578.1,0.54748455]
[1733239960278,0.352,3579.5,3578.3,0.33421146]
[1733239960617,0.352,3579.5,3579.4,2.79376]
[1733239960912,0.352,3579.5,3578.2,1.6232]
[1733239961103,0.03492621,3579.4,3578.9,2.79415]
[1733239961273,0.03492621,3579.4,3578.2,2.79465]
[1733239961477,0.352,3579.2,3578.5,2.79442]
[1733239961674,0.352,3579.2,3578.8,2.79416]
[1733239961877,0.352,3579.2,3577.9,0.5493869]
[1733239961878,0.55,3579.1,3577.9,0.5493869]
[1733239962076,0.26090988,3579.6,3578.8,2.79416]
[1733239962396,0.03492279,3579.5,3578.1,2.79473]
[1733239962718,0.352,3579.4,3578.6,2.79438]
[1733239962927,0.352,3579.4,3578.9,2.79414]
[1733239963096,0.352,3579.4,3579.3,2.79384]
[1733239963274,0.352,3579.4,3578.1,2.79477]
[1733239963275,0.352,3579.4,3579.0,2.794]
[1733239963671,0.352,3579.4,3579.2,2.79389]
[1733239964297,0.352,3579.4,3578.7,2.79423]
[1733239964298,0.55,3579.3,3578.7,2.79423]
[1733239964509,0.55,3579.3,3578.7,3.073653]
[1733239964887,0.55,3579.3,3579.2,2.79392]
[1733239965692,0.26126124,3579.8,3578.9,2.79411]
[1733239965894,0.38691706,3579.9,3579.4,2.79375]
[1733239966082,0.38691706,3579.9,3579.2,2.79391]
[1733239966284,0.03492036,3579.8,3578.4,3.36069697]
[1733239966482,0.26124225,3579.7,3579.1,2.79398]
[1733239966708,0.26125923,3579.8,3578.5,0.3360697]
[1733239967029,0.352,3579.9,3578.9,2.79415]
[1733239967189,0.352,3579.9,3578.7,2.79431]
[1733239967190,0.55,3579.8,3579.4,2.79371]
[1733239967522,0.352,3579.9,3578.0,1.72755869]
[1733239967729,0.352,3579.9,3578.1,1.5741]
[1733239967937,0.352,3579.9,3578.2,3.0]
[1733239968143,0.352,3579.9,3579.6,2.79358]
[1733239968499,0.352,3579.9,3579.5,2.79366]
[1733239968950,0.352,3579.9,3579.6,2.79358]
[1733239969303,0.55,3579.8,3578.1,3.0]
[1733239969606,0.26121307,3580.2,3579.2,1.5412]
[1733239969835,0.26121307,3580.2,3580.1,2.79321]
[1733239970630,0.352,3580.3,3580.2,2.79314]
[1733239971147,0.352,3581.2,3580.6,2.79278]
[1733239971367,0.352,3581.2,3580.8,2.79264]
[1733239971885,0.29595333,3581.1,3580.4,2.79293]
[1733239972000,0.03490822,3581.1,3580.4,2.79293]
[1733239972208,0.29595683,3581.1,3580.2,2.79312]
[1733239972401,0.29595683,3581.1,3579.6,2.79355]
[1733239972402,0.352,3581.0,3580.1,2.79321]
[1733239972634,0.55,3580.9,3579.0,3.0]
[1733239972854,0.352,3580.6,3579.8,2.79337]
[1733239973146,0.55,3580.4,3579.9,2.79335]
[1733239973301,0.03491466,3580.3,3579.4,0.7223256]
[1733239973500,0.55,3580.4,3579.4,0.7223256]
[1733239973905,0.55,3580.5,3579.5,2.79368]
[1733239974103,0.55,3580.5,3579.7,2.79345]
[1733239974305,0.55,3580.5,3579.8,2.7934]
[1733239974562,0.55,3580.5,3579.9,2.79333]
[1733239974718,0.55,3580.5,3579.4,0.7223256]
[1733239974920,0.55,3580.5,3579.8,2.79339]
[1733239975309,0.55,3580.5,3579.8,2.79342]
[1733239975639,0.352,3580.3,3579.4,0.5527936]
[1733239975839,0.55,3580.0,3578.9,0.01296503]
[1733239976067,0.55,3579.7,3578.9,0.01296503]
[1733239976277,0.55,3579.7,3578.9,2.80710503]
[1733239976278,0.55,3579.5,3578.9,2.80710503]
[1733239976807,0.55,3579.5,3578.9,0.01296503]
[1733239977072,3.14607,3579.0,3578.9,0.01296503]
[1733239977301,3.73100427,3579.0,3578.9,0.01296503]
[1733239978334,6.73100427,3579.0,3578.9,0.01296503]
[1733239978575,6.69607,3579.0,3578.9,0.01296503]
[1733239978755,2.79424,3578.8,3577.7,2.79507]
[1733239978958,0.352,3578.5,3577.7,2.79507]
[1733239979140,0.352,3578.5,3577.0,1.6275]
[1733239979141,0.58493681,3578.4,3577.4,0.55785602]
[1733239979385,0.55,3578.4,3577.4,0.55785602]
[1733239979560,0.352,3578.1,3577.4,0.55785602]
[1733239979747,0.55,3578.0,3577.4,3.35316602]
[1733239980073,0.55,3578.0,3577.5,2.79521]
[1733239980283,0.55,3578.0,3577.4,0.55785602]
[1733239980483,0.55,3578.0,3577.6,2.7951]
[1733239980771,0.55,3578.0,3577.4,0.55785602]
[1733239981161,0.55,3578.0,3577.7,2.79505]
[1733239981367,0.352,3578.9,3577.7,0.3352906]
[1733239981534,0.55,3578.8,3578.1,2.79474]
[1733239981737,0.352,3578.9,3577.7,2.79509]
[1733239981738,0.55,3578.6,3577.7,2.79509]
[1733239981990,0.352,3578.9,3578.8,2.79423]
[1733239982277,7.8405233,3580.3,3578.8,2.79423]
[1733239982278,0.352,3579.7,3578.8,2.79418]
[1733239982491,0.352,3579.7,3579.0,2.79405]
[1733239982689,0.352,3579.7,3578.6,2.79438]
[1733239982869,0.352,3579.7,3579.4,2.79375]
[1733239983176,0.352,3579.7,3579.0,2.79401]
[1733239983340,0.352,3579.7,3579.0,2.79404]
[1733239983740,0.33919522,3579.5,3578.5,0.54683982]
[1733239984088,0.33919522,3579.5,3577.8,1.6642]
[1733239984089,0.55,3578.9,3577.8,2.79499]
[1733239984292,0.55,3578.9,3578.0,2.79484]
[1733239984641,0.55,3579.1,3578.1,2.79473]
[1733239984936,1.15984749,3579.4,3578.4,2.79452]
[1733239985151,1.15984749,3579.4,3577.9,0.84059423]
[1733239985152,1.15984749,3579.3,3578.7,2.79428]
[1733239985379,1.15984749,3579.9,3579.1,2.79399]
[1733239985580,2.3863223,3579.9,3579.1,2.79399]
[1733239985738,0.26057573,3579.9,3578.8,2.79417]
[1733239985934,4.404987,3580.0,3578.8,2.79417]
[1733239986261,0.55,3579.8,3579.1,2.79394]
[1733239986471,0.26057573,3579.9,3576.7,1.5992]
[1733239986472,0.55,3579.4,3576.7,1.5992]
[1733239986648,2.79412,3579.0,3577.4,2.79528]
[1733239986912,0.55,3578.7,3577.8,2.79495]
[1733239987049,0.3392,3578.5,3577.8,2.79495]
[1733239987251,0.55,3578.3,3576.9,2.79571]
[1733239987453,0.55,3578.1,3577.5,2.79523]
[1733239987689,0.8892,3577.9,3577.6,2.79509]
[1733239987835,0.55,3577.7,3577.2,2.7954]
[1733239988034,0.55,3577.7,3576.8,0.56772666]
[1733239988282,0.55,3577.7,3575.6,0.37067727]
[1733239988283,0.55,3577.5,3576.4,2.79603]
[1733239988440,0.55,3577.1,3575.5,1.5527]
[1733239988790,0.55,3576.9,3576.2,2.79625]
[1733239988950,0.55,3576.9,3575.5,1.5527]
[1733239988951,0.55,3577.0,3575.5,1.5527]
[1733239989151,0.55,3577.1,3576.2,2.79626]
[1733239989465,0.55,3577.1,3576.1,0.54862396]
[1733239989651,0.58494944,3577.1,3576.1,2.79629]
[1733239989854,0.55,3577.1,3576.1,0.279629]
[1733239990058,0.58495149,3577.1,3576.2,2.79618]
[1733239990251,0.58495149,3577.1,3575.9,0.56930858]
[1733239990667,0.58495149,3577.1,3575.5,1.5527]
[1733239990839,3.13501,3576.8,3575.5,2.79681]
[1733239991043,3.58495563,3576.7,3575.2,2.79698]
[1733239991394,3.58495563,3576.7,3575.1,1.5577]
[1733239991395,0.3392,3576.6,3575.5,2.79673]
[1733239991537,0.55,3576.3,3575.5,2.79673]
[1733239991737,0.55,3576.1,3575.5,2.79673]
[1733239991951,0.55,3575.7,3574.7,1.90694163]
[1733239992151,0.55,3575.5,3574.8,2.79735]
[1733239992367,0.55,3575.5,3574.7,0.25504163]
[1733239992700,0.55,3575.3,3574.7,0.25504163]
[1733239993032,0.55,3575.3,3575.0,2.79718]
[1733239993283,0.55,3575.3,3574.7,0.25504163]
[1733239993284,0.03496486,3575.2,3574.7,0.25504163]
[1733239993434,0.55,3574.9,3574.7,0.25504163]
[1733239993634,0.55,3574.9,3574.5,2.79758]
[1733239993839,0.55,3574.9,3574.1,2.7979]
[1733239993840,0.03496992,3574.8,3574.1,2.7979]
[1733239994079,0.55,3574.7,3574.1,2.7979]
[1733239994250,0.3392,3575.0,3573.6,4.41633]
[1733239994251,0.55,3574.5,3573.9,2.79805]
[1733239994459,0.55,3574.5,3573.6,0.54686974]
[1733239994654,0.55,3574.3,3573.6,3.34514974]
[1733239995000,0.55,3573.9,3572.7,2.79898]
[1733239995278,0.3392,3574.0,3573.4,3.35654714]
[1733239995279,0.55,3573.7,3573.4,3.35654714]
[1733239995482,0.55,3573.7,3573.5,2.79836]
[1733239995637,0.3392,3574.3,3574.2,2.79781]
[1733239995834,0.3392,3574.3,3573.9,2.79799]
[1733239996078,0.3392,3574.3,3573.2,1.5034]
[1733239996079,0.3392,3574.3,3573.4,2.79838]
[1733239996283,0.3392,3574.3,3573.2,2.06800817]
[1733239996284,0.3392,3574.3,3574.1,2.79789]
[1733239996448,0.3392,3575.3,3574.1,2.79789]
[1733239996781,0.3392,3575.3,3573.7,2.79822]
[1733239996966,0.3392,3575.3,3575.0,2.79712]
[1733239997171,0.3392,3575.3,3574.2,1.5034]
[1733239997492,0.3392,3575.3,3574.4,2.79767]
[1733239997787,0.3392,3575.3,3574.7,2.79743]
[1733239997971,0.3392,3575.3,3574.8,2.79735]
[1733239998180,0.3392,3575.3,3573.9,2.79806]
[1733239998181,0.3392,3575.3,3573.8,1.5418]
[1733239998362,0.55,3575.1,3573.8,1.5418]
[1733239998696,0.55,3574.9,3573.8,0.25975345]
[1733239999008,0.03497327,3574.8,3573.8,0.25975345]
[1733239999143,0.3392,3574.8,3573.9,2.79801]
[1733239999342,0.3392,3574.8,3573.7,2.79814]
[1733239999343,0.55,3574.6,3573.7,2.79814]
[1733239999603,0.55,3574.6,3573.5,0.48663882]
[1733239999759,0.55,3574.7,3573.6,0.3811042]
[1733239999963,0.58497483,3574.7,3573.6,0.3811042]
[1733240000167,0.58497483,3574.7,3573.4,2.79844]
[1733240000168,0.55,3574.5,3573.4,2.79844]
[1733240000376,0.3392,3574.2,3573.4,2.79844]
[1733240000590,0.55,3574.1,3573.4,2.79844]
[1733240000781,0.3392,3574.2,3572.9,2.7988]
[1733240001097,0.3392,3575.0,3573.5,1.5168]
[1733240001254,0.3392,3575.0,3574.4,2.79766]
[1733240001449,0.3392,3575.0,3573.6,0.15168]
[1733240001749,0.3392,3575.0,3574.9,2.79728]
[1733240001953,0.3392,3575.0,3574.4,2.79761]
[1733240002280,0.3392,3575.0,3574.6,2.79749]
[1733240002593,0.3392,3575.0,3574.9,2.79728]
[1733240002945,0.3392,3576.3,3575.4,2.79687]
[1733240003198,0.3392,3576.3,3575.2,2.79704]
[1733240003392,0.3392,3576.3,3575.6,2.79672]
[1733240003755,0.0349603,3576.2,3574.7,2.79742]
[1733240003954,0.3392,3575.9,3574.0,1.5795]
[1733240004191,0.3392,3575.7,3574.1,0.15795]
[1733240004355,0.55,3575.6,3574.3,2.79775]
[1733240004694,0.55,3575.6,3574.1,0.71746926]
[1733240004695,0.55,3575.6,3575.2,2.79699]
[1733240004904,0.03496401,3575.5,3574.1,0.71746926]
[1733240005069,0.55,3575.6,3575.2,2.79699]
[1733240005420,0.3392,3575.7,3575.6,2.79673]
[1733240005570,0.8892,3575.7,3575.6,2.79673]
[1733240005784,0.3392,3575.7,3575.6,2.79673]
[1733240006185,0.3392,3575.7,3575.1,2.79707]
[1733240006575,0.3392,3575.7,3575.5,2.79674]
[1733240006937,0.3392,3575.7,3575.6,2.79673]
[1733240007094,0.374159,3576.9,3575.4,2.79681]
[1733240007302,3.0,3576.7,3575.7,2.79664]
[1733240007507,0.3392,3576.5,3575.1,0.56317127]
[1733240007799,0.03496214,3576.4,3575.6,2.79672]
[1733240008005,0.03496214,3576.4,3575.1,3.36023127]
[1733240008006,0.03496214,3576.4,3575.4,2.79687]
[1733240008222,0.3392,3576.2,3574.6,2.79751]
[1733240008528,0.55,3576.1,3574.7,0.438691]
[1733240008666,0.3392,3576.0,3574.6,2.79745]
[1733240008871,0.55,3575.7,3574.1,0.15795]
[1733240009102,0.3392,3575.8,3574.1,0.15795]
[1733240009103,0.55,3575.5,3574.7,0.56977902]
[1733240009267,0.55,3575.1,3573.9,2.798]
[1733240009487,0.8892,3574.9,3574.1,2.79784]
[1733240009692,0.55,3574.7,3573.7,2.7982]
[1733240009995,0.55,3574.7,3573.3,4.38892]
[1733240009996,0.55,3574.5,3573.3,2.79852]
[1733240010324,0.55,3574.1,3573.6,2.79829]
[1733240010470,0.55,3574.1,3573.4,0.55191568]
[1733240010675,0.55,3573.9,3573.5,2.79836]
[1733240011315,0.55,3574.1,3573.3,0.56412323]
[1733240011621,0.03498298,3574.0,3573.7,2.79819]
[1733240011775,0.55,3574.1,3573.4,2.79845]
[1733240011974,0.8892,3574.2,3574.1,2.7979]